Cogmind - Beta 10.2 @@@ ROGUE MODE // 2020.12.11 @ 21:02:47 // Halloween2020/ForbiddenLore Player: WayneKnight Result: Self-destructed Performance ------------- Evolutions (0) 0 Regions Visited (4) 800 Robots Destroyed (41) 205 Value Destroyed (1002) 1002 Prototype IDs (23) 460 Alien Tech Used (0) 0 Bonus (375) 375 TOTAL SCORE: 2842 Bonus ------- Follower Combat Kills 75 Aligned with FarCom 300 Cogmind --------- Core Integrity 51/250 Matter 300/300 Energy 125/125 System Corruption 0% Temperature Cool (0) Movement Treading (180) Ox1 Location -9/Mines Parts ------- > --- POWER (1) -------- Light Ion Engine > --- PROPULSION (2) --- Light Treads Light Treads > --- UTILITY (2) ------ High-capacity Storage Unit High-capacity Storage Unit > --- WEAPON (2) ------- Shotgun Shotgun > --- INVENTORY (20) --- Ion Engine Ion Engine Light Treads Aluminum Leg Large Storage Unit High-capacity Storage Unit Lightpack 2.0 High-capacity Matter Pod (200) Cloak of Protection Medium Armor Plating EM Pulse Gun Beam Cannon Light Assault Rifle Light Assault Rifle Shotgun Shotgun Rocket Launcher Peak State ------------ > --- POWER ------------ Light Ion Engine > --- PROPULSION ------- Light Treads Light Treads > --- UTILITY ---------- High-capacity Storage Unit High-capacity Storage Unit > --- WEAPON ----------- Shotgun Shotgun > --- INVENTORY -------- Ion Engine Ion Engine Light Treads Light Treads Aluminum Leg Large Storage Unit High-capacity Storage Unit Lightpack 2.0 High-capacity Matter Pod Cloak of Protection Medium Armor Plating EM Pulse Gun Beam Cannon Light Assault Rifle Light Assault Rifle Shotgun Shotgun Grenade Launcher Rocket Launcher [Rating: 13] Favorites ----------- Power Light Ion Engine Engine Light Ion Engine Propulsion Light Treads Treads Light Treads Leg Aluminum Leg Flight Unit Flight Unit Utility High-capacity Storage Unit Storage High-capacity Storage Unit Weapon Shotgun Energy Gun Medium Laser Ballistic Gun Shotgun Launcher Grenade Launcher Build | -11 -10 -10 -10 -9 ------- Run | Scr Mat Min Exi Min Slots Evolved . | . . . . . Power . | . . . . . Propulsion . | . . . . . Utility . | . . . . . Weapon . | . . . . . Parts Attached 31 | . 22 1 . 8 Power 1 | . 1 . . . Engine 1 | . 1 . . . Core . | . . . . . Reactor . | . . . . . Propulsion 10 | . 9 . . 1 Treads 7 | . 6 . . 1 Leg 2 | . 2 . . . Wheel . | . . . . . Hover . | . . . . . Flight 1 | . 1 . . . Utility 4 | . 4 . . . Device . | . . . . . Storage 4 | . 4 . . . Processor . | . . . . . Hackware . | . . . . . Protection . | . . . . . Artifact . | . . . . . Weapon 16 | . 8 1 . 7 Energy Gun . | . . . . . Energy Cannon . | . . . . . Ballistic Gun 12 | . 7 1 . 4 Ballistic Cannon . | . . . . . Launcher 4 | . 1 . . 3 Special Weapon . | . . . . . Impact Weapon . | . . . . . Slashing Weapon . | . . . . . Piercing Weapon . | . . . . . Special Melee Weapon . | . . . . . Unidentified Prototypes . | . . . . . Parts Lost 4 | . 2 . . 2 Power . | . . . . . Propulsion 2 | . 1 . . 1 Utility . | . . . . . Weapon 2 | . 1 . . 1 Highest Loss Streak 1 | . 1 . . 1 Average Slot Usage (%) 98 | . 97 100 100 99 Engine 14 | . 14 14 14 14 Treads 27 | . 26 28 28 28 Storage 27 | . 25 28 28 28 Energy Gun 2 | . 5 . . . Ballistic Gun 25 | . 21 27 28 27 Naked Turns . | . . . . . Heaviest Build 73 | 13 73 73 73 73 Greatest Support 40 | 20 40 40 40 40 Greatest Overweight (x) 12 | . 12 1 1 1 Average Overweight (x) . | . . 1 1 1 Largest Inventory Capacity 20 | 6 20 20 20 20 Average Capacity 17 | 6 14 20 20 20 Most Carried 20 | 6 20 20 20 20 Average Carried 16 | 6 11 19 19 18 Final Capacity 20 | 6 20 20 20 20 Final Carried 20 | 6 20 20 20 18 Class Distribution -------------------- 63% | Hauler-Mutant 36% | Mutant Dominant Class ---------------- Mutant | -10/Materials Hauler-Mutant | -10/Mines Hauler-Mutant | -10/Exiles Hauler-Mutant | -9/Mines Resources | -11 -10 -10 -10 -9 ----------- Run | Scr Mat Min Exi Min Matter Collected 1113 | 144 491 49 . 429 Remotely . | . . . . . Salvage Created 1297 | 57 655 61 . 524 Parts 90 | 2 48 4 . 36 Haulers Intercepted 1 | . 1 . . . Recyclers Shooed 1 | . 1 . . . Parts Field Recycled . | . . . . . Retrieved Matter . | . . . . . Parts Self-Destructed . | . . . . . Prevented . | . . . . . Kills | -11 -10 -10 -10 -9 ------- Run | Scr Mat Min Exi Min Combat Hostiles Destroyed 35 | . 15 1 . 19 Guns 35 | . 15 1 . 19 Classes Destroyed 9 | 1 5 1 . 2 Worker 1 | . . 1 . . Tunneler 1 | . . . . 1 Hauler 1 | . 1 . . . Recycler 2 | 1 1 . . . Operator 2 | . 2 . . . Watcher 1 | . 1 . . . Swarmer 9 | . 6 . . 3 Grunt 24 | . 9 1 . 14 Assembled 2 | . . . . 2 Best Kill Streak 4 | 1 4 1 . 4 Combat Bots Only 4 | . 4 1 . 4 Max Kills in Single Turn 2 | 1 1 1 . 2 Gunslinging . | . . . . . Exploded . | . . . . . Melee . | . . . . . Uniques/NPCs Destroyed . | . . . . . Combat | -11 -10 -10 -10 -9 -------- Run | Scr Mat Min Exi Min Damage Taken 1059 | . 478 22 . 559 Core 199 | . 77 10 . 112 Absorbed by Shields . | . . . . . Core Remaining (%) 100 | 100 . . . . Volleys Fired 115 | 2 66 1 . 46 Largest 2 | 2 2 2 . 2 Hottest 70 | 70 70 46 . 46 Shots Fired 222 | 4 132 2 . 84 Gun 214 | 4 132 2 . 76 Cannon . | . . . . . Launcher 8 | . . . . 8 Special . | . . . . . Kinetic 190 | 2 110 2 . 76 Thermal 24 | 2 22 . . . Explosive 8 | . . . . 8 Electromagnetic . | . . . . . Robot Hit Streak 25 | 4 25 . . 10 Robot Miss Streak 4 | . 4 2 . 3 Penetration Max . | . . . . . Secondary Targets 3 | . 1 . . 2 Max Gunslinging Chain 1 | . 1 . . 1 Shots Hit Robots 166 | 4 102 . . 60 Core Hits 79 | 2 39 2 . 36 Critical Hits 1 | . . . . 1 Critical Kills . | . . . . . Critical Parts Destroyed 1 | . . . . 1 Melee Attacks . | . . . . . Impact . | . . . . . Slashing . | . . . . . Piercing . | . . . . . Sneak Attacks . | . . . . . Combat Hostiles . | . . . . . Follow-up Attacks . | . . . . . Damage Inflicted 2308 | 47 1298 42 . 921 Guns 2191 | 47 1263 10 . 871 Cannons . | . . . . . Explosions 3 | . . . . 3 Melee . | . . . . . Ramming 114 | . 35 32 . 47 Kinetic 1937 | 23 1033 10 . 871 Thermal 254 | 24 230 . . . Explosive 3 | . . . . 3 Electromagnetic . | . . . . . Impact . | . . . . . Slashing . | . . . . . Piercing . | . . . . . Highest Corruption . | . . . . . Average Corruption . | . . . . . Corruption Purged . | . . . . . Overload Shots . | . . . . . Overflow Damage . | . . . . . Projectiles . | . . . . . Explosions . | . . . . . Melee . | . . . . . Knockbacks 4 | . 1 2 . 1 Impact 4 | . 1 2 . 1 Kinetic . | . . . . . Secondary . | . . . . . Self-Inflicted Damage 148 | . . . . 148 Shots 5 | . . . . 5 Rammed 16 | . 8 3 . 5 Targets Rammed 16 | . 8 3 . 5 Kicked . | . . . . . Crushed . | . . . . . Highest Temperature 126 | 18 126 . . 11 Average Temperature 26 | 10 33 . . 3 Received Heat Transfer 366 | . 180 12 . 174 Siege Activations . | . . . . . Robots Corrupted . | . . . . . Combat Hostiles . | . . . . . Parts Fried . | . . . . . Impact Corruptions . | . . . . . Robots Melted . | . . . . . Combat Hostiles . | . . . . . Parts Melted 1 | . 1 . . . Heat Transferred 703 | 74 629 . . . Parts Sabotaged . | . . . . . Parts Stolen . | . . . . . Parts Stripped . | . . . . . Power Chain Reactions . | . . . . . Missiles Intercepted . | . . . . . Alert | -11 -10 -10 -10 -9 ------- Run | Scr Mat Min Exi Min Peak Influence 288 | 5 288 91 . 175 Initial 72 | . 3 72 . . Average 82 | 3 132 48 . 35 Maximum Alert Level 1 | . 1 . . . Low Security (%) 85 | 100 67 100 . 100 Level 1 14 | . 32 . . . Level 2 . | . . . . . Level 3 . | . . . . . Level 4 . | . . . . . Level 5 . | . . . . . High Security . | . . . . . Max Security . | . . . . . Squads Dispatched 5 | . 4 1 . . Investigation 2 | . 2 . . . Extermination . | . . . . . Reinforcement 2 | . 2 . . . Assault 1 | . . 1 . . Garrison . | . . . . . Intercept . | . . . . . Construction Impeded . | . . . . . Haulers Reinforced . | . . . . . Stealth | -11 -10 -10 -10 -9 --------- Run | Scr Mat Min Exi Min Distress Signals 2 | . 2 . . . Communications Jammed . | . . . . . Distress Signals . | . . . . . Times Spotted 67 | . 43 5 . 19 Peak Tracking Total 6 | . 6 4 . 3 Tactical Retreats 10 | . 9 . . 1 Traps | -11 -10 -10 -10 -9 ------- Run | Scr Mat Min Exi Min Traps Triggered 6 | . 6 . . . Indirectly . | . . . . . Trap Hack Attempts . | . . . . . Triggered . | . . . . . Disarmed . | . . . . . Reprogrammed . | . . . . . Reused . | . . . . . Traps Extracted . | . . . . . Installed . | . . . . . Triggered . | . . . . . Machines | -11 -10 -10 -10 -9 ---------- Run | Scr Mat Min Exi Min Machines Disabled . | . . . . . Max in Single Turn . | . . . . . Machines Sabotaged . | . . . . . Garrisons Compromised . | . . . . . Overloaded Fab Kills . | . . . . . Fab Network Shutdowns . | . . . . . Hacking | -11 -10 -10 -10 -9 --------- Run | Scr Mat Min Exi Min Machines Accessed 9 | . 5 2 2 . Terminals 5 | . 4 1 . . Fabricators . | . . . . . Repair Stations . | . . . . . Recycling Units 1 | . 1 . . . Scanalyzers . | . . . . . Garrison Access . | . . . . . Total Hacks 24 | . 15 7 2 . Successful 16 | . 10 4 2 . Failed 7 | . 5 2 . . Catastrophic . | . . . . . Database Lockouts 1 | . . 1 . . Manual 17 | . 10 6 1 . Terminals 20 | . 14 6 . . Fabricators . | . . . . . Repair Stations . | . . . . . Recycling Units 1 | . 1 . . . Scanalyzers . | . . . . . Garrison Access . | . . . . . Terminal Hacks 9 | . 4 3 2 . Record 1 | . . . 1 . Part Schematic 2 | . . 2 . . Robot Analysis 2 | . 2 . . . Open Door 1 | . . 1 . . Locate Traps 1 | . 1 . . . Zone Layout 1 | . 1 . . . EX-Prototype ID Bank 1 | . . . 1 . Fabricator Hacks . | . . . . . Repair Station Hacks . | . . . . . Recycling Unit Hacks 1 | . 1 . . . Report Inventory 1 | . 1 . . . Scanalyzer . | . . . . . Garrison Access Hacks . | . . . . . Unauthorized Hacks 6 | . 5 1 . . Terminals 6 | . 5 1 . . Track 3 | . 2 1 . . Botnet 3 | . 3 . . . Fabricators . | . . . . . Repair Stations . | . . . . . Recycling Units . | . . . . . Scanalyzers . | . . . . . Garrison Access . | . . . . . Data Cores Recovered . | . . . . . Used . | . . . . . Hacking Detections 5 | . 4 1 . . Full Trace Events . | . . . . . Feedback Events . | . . . . . Feedback Blocked . | . . . . . Robot Schematics Acquired . | . . . . . Robots Built . | . . . . . Matter . | . . . . . Time . | . . . . . Total Robot Build Rating . | . . . . . Part Schematics Acquired 2 | . . 2 . . Parts Built . | . . . . . Matter . | . . . . . Time . | . . . . . Total Part Build Rating . | . . . . . Parts Repaired . | . . . . . Time . | . . . . . Parts Recycled . | . . . . . Recycled Matter . | . . . . . Retrieved Matter . | . . . . . Retrieved Components . | . . . . . Parts Scanalyzed . | . . . . . Part Schematics Acquired . | . . . . . Parts Damaged . | . . . . . Bothacking | -11 -10 -10 -10 -9 ------------ Run | Scr Mat Min Exi Min Used RIF Installer . | . . . . . Robots Hacked . | . . . . . Non-combat . | . . . . . Combat . | . . . . . Robot Hacks Applied . | . . . . . Relay Couplers Released . | . . . . . Robots Rewired . | . . . . . Allies Hacked . | . . . . . Hacks Repelled . | . . . . . Allies | -11 -10 -10 -10 -9 -------- Run | Scr Mat Min Exi Min Total Allies 4 | . . 4 . . Largest Group 4 | . . 4 2 2 Highest-Rated Group 71 | . . 71 47 47 Highest-Rated Ally 31 | . . 31 31 31 Total Orders . | . . . . . Ally Attacks 21 | . . 19 . 2 Total Damage 319 | . . 285 . 34 Kills 3 | . . 3 . . Allies Corrupted 1 | . . . . 1 Allies Melted . | . . . . . Intel | -11 -10 -10 -10 -9 ------- Run | Scr Mat Min Exi Min Robot Analysis Total 2 | . 2 . . . Derelict Logs Recovered 2 | . . 2 . . Drone Launches . | . . . . . Drone Recoveries . | . . . . . Exploration | -11 -10 -10 -10 -9 ------------- Run | Scr Mat Min Exi Min Turns Passed 5889 | 8 2381 1241 691 1568 Spaces Moved 2178 | 2 746 680 382 368 Core 1 | . 1 . . . Treads 2167 | . 737 680 382 368 Legs 9 | 2 7 . . . Wheels . | . . . . . Hover . | . . . . . Flight 1 | . 1 . . . Fastest Speed 120 | 120 120 180 180 180 Average Speed 178 | 120 176 180 180 180 Slowest Speed 780 | 120 780 180 180 180 Overloaded Moves . | . . . . . Propulsion Burnouts . | . . . . . Robots Hopped . | . . . . . Cave-ins Triggered . | . . . . . Exploration Rate (%) 60 | 2 88 99 70 42 Regions Visited 4 Branch Regions 3 Pre-discovered Areas 1 | . . . 1 . Known Exits Taken . | . . . . . Unknown Exits Taken 4 | 1 1 1 1 . Scrap Searched 1 | . . 1 . . Spaces Dug . | . . . . . Terrain Destroyed 26 | . . . . 26 Melee . | . . . . . Projectile . | . . . . . AOE 26 | . . . . 26 Terrain Rammed . | . . . . . Walls Destroyed . | . . . . . Machines Disabled . | . . . . . Actions | -11 -10 -10 -10 -9 --------- Run | Scr Mat Min Exi Min Total 3941 | 3 1674 693 388 1183 Wait 1573 | . 810 7 . 756 Move 2174 | 1 745 679 381 368 Hop . | . . . . . Pick Up 18 | . 14 1 3 . Fast Attach 9 | . 9 . . . Attach 4 | . 2 . . 2 Detach 1 | . 1 . . . Swap 18 | . 11 1 . 6 Drop 13 | . 8 1 4 . Fire 115 | 2 66 1 . 46 Melee . | . . . . . Ram . | . . . . . Kick . | . . . . . Crush 16 | . 8 3 . 5 Escape Stasis . | . . . . . Rewire . | . . . . . Trap . | . . . . . Miscellaneous . | . . . . . Route ------- -11/Scrapyard -10/Materials (discovered 4 exits: *Mat x3 / *Min) -10/Mines (discovered 3 exits: *Mat x2 / *Exi) -10/Exiles -9/Mines History --------- Turn | Location | Event 7 | -11/Scrapyard | Discovered new exit (range 1) 9 | -11/Scrapyard | Entered Materials 314 | -10/Materials | Build established: Mutant 918 | -10/Materials | Discovered new exit (range 15) 1466 | -10/Materials | Discovered new exit (range 15) 1768 | -10/Materials | Discovered new exit (range 16) 1903 | -10/Materials | Discovered new exit (range 12) 2390 | -10/Materials | Entered Mines 2475 | -10/Mines | Central database locked down 2479 | -10/Mines | Build established: Hauler-Mutant 2547 | -10/Mines | Learned Materials trap positions 2671 | -10/Mines | Found a hidden stash of uninstalled traps 2805 | -10/Mines | Received a Rocket Launcher from a helpful Derelict 2861 | -10/Mines | Identified exit to Materials 2926 | -10/Mines | Deemed a non-threat by the Exiles lab entrance 2926 | -10/Mines | Discovered new exit (range 5) 3098 | -10/Mines | Met a Derelict testing a Signal Generator 3131 | -10/Mines | Assisted by bots powering up and referring to "LRC-V3" 3139 | -10/Mines | Discovered exit to Materials (range 15) 3313 | -10/Mines | Found the Drone Emporium 3631 | -10/Mines | Entered Exiles 3631 | -10/Exiles | Accompanied by 2 allies 3675 | -10/Exiles | Met 8R-AWN 3705 | -10/Exiles | Met EX-HEX 3789 | -10/Exiles | Met EX-DEC 3946 | -10/Exiles | Met EX-BIN 3971 | -10/Exiles | Aligned with FarCom system 3973 | -10/Exiles | Given EX-Vault access code 4024 | -10/Exiles | Opened EX-Vault 4037 | -10/Exiles | Found Cloak of Protection 4042 | -10/Exiles | Found Lightpack 2.0 4085 | -10/Exiles | Warned to stay clear of 0b10 Research branches 4248 | -10/Exiles | Learned location of Zion (-7) 4301 | -10/Exiles | Discovered new exit (range 14) 4322 | -10/Exiles | Stole two prototypes: Cloak of Protection, Lightpack 2.0 4322 | -10/Exiles | Entered Mines 4322 | -9/Mines | Accompanied by 2 allies 4374 | -9/Mines | Met a Derelict bent on vengeance 4381 | -9/Mines | Excavation squad dispatched 4381 | -9/Mines | A large section of the Mines collapsed 4547 | -9/Mines | Core integrity fell below 50% 4631 | -9/Mines | Excavation squad dispatched 4881 | -9/Mines | Excavation squad dispatched 5131 | -9/Mines | Excavation squad dispatched 5381 | -9/Mines | Excavation squad dispatched 5631 | -9/Mines | Excavation squad dispatched 5881 | -9/Mines | Excavation squad dispatched 5890 | -9/Mines | Self-destructed Last Messages --------------- 05105_ Acquired 24 matter. 05114_ S-10 Pest destroyed. 05117_ Acquired 28 matter. 05119_ Acquired 7 matter. 05131_ ALERT: Derelict activity in mines confirmed. Dispatching additional escorted excavation squad. 05161_ K-01 Serf collects debris. 05381_ ALERT: Derelict activity in mines confirmed. Dispatching additional escorted excavation squad. 05631_ ALERT: Derelict activity in mines confirmed. Dispatching additional escorted excavation squad. 05867_ G-34 Mercenary destroyed. 05867_ Switching to secondary target: G-34 Mercenary. 05870_ G-34 Mercenary suffers critical hit. 05870_ Destroyed Heat Sink. 05870_ G-34 Mercenary destroyed. 05873_ Acquired 33 matter. 05875_ Acquired 7 matter. 05881_ ALERT: Derelict activity in mines confirmed. Dispatching additional escorted excavation squad. Map ----- +----------------------------------------------------+ | | | | | | | | | | | | | | | | | | | | | | | ???????????????????????????????????????? | | ???????????????????????????????###?????? | | ??????????????????????????????# ##????? | | ??????????????????????????#### #????? | | ?????????????????????????## #????? | | ?????????????????????????# #?????? | | ?????????????????????????## ##?????? | | ??????????????????????????# ##??????? | | ??????????????????????????# #???????? | | ???????????????????###???## #???????? | | ??????????????????## #### #???????? | | ?????????????????## ## #???????? | | ????????????????## [% #???????? | | ????????????????# t = #???????? | | ????????????????# """ ##@ ##???????? | | ????????????????# """ ########????????? | | ????????????????# """ ##??????????????? | | ????????????????# #??????????????? | | ????????????????# g #??????????????? | | ????????????????# ##??????????????? | | ????????????????## ## #???????????????? | | ?????????????????###?# #???????????????? | | ?????????????????????# #???????????????? | | ?????????????????????# #???????????????? | | ?????????????????????# ######??????????? | | ?????????????????????# g ##?????????? | | ?????????????????????# #?????????? | | ?????????????????????###### #?????????? | | ????????####??????????????# #?????????? | | ???????## ##????????????## ##????????? | | ???????# #????????????# ##???????? | | ???????# ##???????????# ##??????? | | ???????## ####????????# #??????? | | ????????### ##??????## #??????? | | ??????????## #?????## ##?????? | | ???????????## ##??### ##????? | | ????????????## #### #????? | | ????????????## ##???? | | ?????????#### #???? | +----------------------------------------------------+ Best States ------------- Heat Dissipation 25 Energy Generation 10 Energy Capacity 250 Matter Stores 300 Matter Capacity 300 Sight Range 16 Terrain Scan Density 10 Evasion (%) 40 Recoil Reduction 2 Item Schematics ----------------- Hcp. Storage Unit | -10/Mines | Hacked Lrg. Storage Unit | -10/Mines | Hacked Robot Schematics ------------------ None Fabricated ------------ Nothing Alien Tech Used ----------------- None Achievements -------------- None Challenges ------------ None Game ------ Seed ThermalVisualMaul Manual? 0 Play Time 00:18:44 Cumulative 144.7 hours Start 2020.12.07 @ 15:06:15 End 2020.12.11 @ 21:02:47 Sessions 3 Manual Loads 0 Difficulty Rogue Special Mode Halloween2020/ForbiddenLore Game No. 111 Rogue 111 Adventurer 0 Explorer 0 Win Type - Total 3 Types 3/0/0/0/0/0/0/0/0 Lore% 44 Gallery% 57 Achievement% 44 Wizard Run 0 Options --------- ASCII 1 Keyboard 1 Movement Arrows Keybinds 0 Fullscreen 1 Font 24/Proggy Map View 76x50 Tactical HUD 1 Map Filters NONE Filters NONE Steam 1 RUN: 165561d0-1cda-4658-af86-56423c7b6da4